fUSD/lending_fUSD_20260513
["ID","MTS","AMOUNT","RATE_DAILY","PERIOD"]
[422150032,1778623845000,-154.0,0.0003024,2]
[422150031,1778623845000,-150.0,0.0003024,2]
[422150034,1778623845000,-200.0,0.00030351,2]
[422150033,1778623845000,-168.93,0.00030305,3]
[422150035,1778623845000,-200.0,0.00030351,2]
[422150044,1778623845000,-178.0,0.00030644,30]
[422150050,1778623845000,-154.0,0.00030644,30]
[422150042,1778623845000,-200.0,0.00030351,2]
[422150045,1778623845000,-154.0,0.00030644,30]
[422150051,1778623845000,-330.0,0.00030644,30]
[422150041,1778623845000,-200.0,0.00030351,2]
[422150059,1778623845000,-570.97,0.00030784,7]
[422150043,1778623845000,-183.0,0.00030351,2]
[422150058,1778623845000,-196.59,0.00030784,7]
[422150056,1778623845000,-197.61,0.00030784,7]
[422150055,1778623845000,-2292.35,0.00030784,7]
[422150054,1778623845000,-240.0,0.00030652,30]
[422150053,1778623845000,-174.0,0.00030652,30]
[422150048,1778623845000,-1251.0,0.00030644,30]
[422150052,1778623845000,-158.0,0.00030652,30]
[422150047,1778623845000,-510.0,0.00030644,30]
[422150046,1778623845000,-174.0,0.00030644,30]
[422150049,1778623845000,-156.0,0.00030644,30]
[422150127,1778623846000,-6317.88444376,0.00033,120]
[422150128,1778623846000,-2313.999999,0.00033,30]
[422150131,1778623846000,-350.0,0.00033014,5]
[422150124,1778623846000,-300.0,0.00032999,10]
[422150125,1778623846000,-46605.70992294,0.00033,5]
[422150111,1778623846000,-1251.0,0.00032644,30]
[422150123,1778623846000,-168.0724151,0.00032876,2]
[422150122,1778623846000,-8907.0223168,0.00032691,2]
[422150121,1778623846000,-485.9340205,0.00032691,2]
[422150115,1778623846000,-158.0,0.00032652,30]
[422150130,1778623846000,-208.16996645,0.00033,120]
[422150126,1778623846000,-29636.96232064,0.00033,3]
[422150129,1778623846000,-150.0,0.00033,14]
[422150144,1778623846000,-905.86,0.00033546,14]
[422150134,1778623846000,-40045.0,0.00033155,60]
[422150135,1778623846000,-40045.0,0.00033168,60]
[422150136,1778623846000,-150.0,0.000332,30]
[422150143,1778623846000,-40045.0,0.00033504,60]
[422150133,1778623846000,-205.88223055,0.00033154,10]
[422150137,1778623846000,-40045.0,0.0003331,60]
[422150140,1778623846000,-196.59,0.0003341,7]
[422150138,1778623846000,-40045.0,0.00033336,60]
[422150142,1778623846000,-40045.0,0.00033465,60]
[422150139,1778623846000,-197.61,0.0003341,7]
[422150141,1778623846000,-5101.1239616,0.00033442,2]
[422150112,1778623846000,-156.0,0.00032644,30]
[422150132,1778623846000,-181.9429298,0.00033068,7]
[422150113,1778623846000,-154.0,0.00032644,30]
[422150095,1778623846000,-579.61,0.000318,7]
[422150110,1778623846000,-510.0,0.00032644,30]
[422150151,1778623846000,-174.0,0.00033644,30]
[422150092,1778623846000,-566.16,0.00031659,30]
[422150091,1778623846000,-197.61,0.00031659,30]
[422150093,1778623846000,-196.59,0.00031659,30]
[422150089,1778623846000,-240.0,0.00031652,30]
[422150090,1778623846000,-2292.35,0.00031659,30]
[422150094,1778623846000,-570.97,0.00031659,30]
[422150096,1778623846000,-634.72261672,0.00031876,2]
[422150097,1778623846000,-208.16996645,0.00032,120]
[422150098,1778623846000,-200.0,0.00032055,2]
[422150107,1778623846000,-178.0,0.00032644,30]
[422150100,1778623846000,-5000.0,0.00032454,2]
[422150114,1778623846000,-330.0,0.00032644,30]
[422150108,1778623846000,-154.0,0.00032644,30]
[422150101,1778623846000,-565.9,0.00032534,2]
[422150103,1778623846000,-197.61,0.00032534,2]
[422150104,1778623846000,-566.16,0.00032534,2]
[422150102,1778623846000,-2292.35,0.00032534,2]
[422150106,1778623846000,-570.97,0.00032534,2]
[422150105,1778623846000,-196.59,0.00032534,2]
[422150109,1778623846000,-174.0,0.00032644,30]
[422150116,1778623846000,-174.0,0.00032652,30]
[422150117,1778623846000,-240.0,0.00032652,30]
[422150119,1778623846000,-2975.8937379,0.00032691,2]
[422150118,1778623846000,-361.1576424,0.00032691,2]
[422150120,1778623846000,-1093.6961043,0.00032691,2]
[422150099,1778623846000,-2390.49,0.000321,14]
[422150147,1778623846000,-40045.0,0.0003362,60]
[422150207,1778623846000,-500.0,0.0003393,2]
[422150148,1778623846000,-152.0,0.00033622,5]
[422150190,1778623846000,-500.0,0.0003393,2]
[422150179,1778623846000,-500.0,0.0003393,2]
[422150181,1778623846000,-500.0,0.0003393,2]
[422150183,1778623846000,-500.0,0.0003393,2]
[422150185,1778623846000,-500.0,0.0003393,2]
[422150187,1778623846000,-500.0,0.0003393,2]
[422150189,1778623846000,-500.0,0.0003393,2]
[422150186,1778623846000,-500.0,0.0003393,2]
[422150184,1778623846000,-500.0,0.0003393,2]
[422150188,1778623846000,-500.0,0.0003393,2]
[422150203,1778623846000,-500.0,0.0003393,2]
[422150193,1778623846000,-500.0,0.0003393,2]
[422150180,1778623846000,-500.0,0.0003393,2]
[422150197,1778623846000,-500.0,0.0003393,2]
[422150191,1778623846000,-500.0,0.0003393,2]
[422150192,1778623846000,-500.0,0.0003393,2]
[422150195,1778623846000,-500.0,0.0003393,2]
[422150194,1778623846000,-500.0,0.0003393,2]
[422150196,1778623846000,-500.0,0.0003393,2]
[422150198,1778623846000,-500.0,0.0003393,2]
[422150199,1778623846000,-500.0,0.0003393,2]
[422150201,1778623846000,-500.0,0.0003393,2]
[422150200,1778623846000,-500.0,0.0003393,2]
[422150204,1778623846000,-500.0,0.0003393,2]
[422150206,1778623846000,-500.0,0.0003393,2]
[422150149,1778623846000,-178.0,0.00033644,30]
[422150202,1778623846000,-500.0,0.0003393,2]
[422150172,1778623846000,-500.0,0.0003393,2]
[422150205,1778623846000,-500.0,0.0003393,2]
[422150171,1778623846000,-500.0,0.0003393,2]
[422150175,1778623846000,-500.0,0.0003393,2]
[422150146,1778623846000,-2390.49,0.000336,14]
[422150150,1778623846000,-154.0,0.00033644,30]
[422150153,1778623846000,-1251.0,0.00033644,30]
[422150152,1778623846000,-510.0,0.00033644,30]
[422150154,1778623846000,-156.0,0.00033644,30]
[422150156,1778623846000,-330.0,0.00033644,30]
[422150166,1778623846000,-500.0,0.0003393,2]
[422150167,1778623846000,-500.0,0.0003393,2]
[422150157,1778623846000,-158.0,0.00033652,30]
[422150158,1778623846000,-174.0,0.00033652,30]
[422150155,1778623846000,-154.0,0.00033644,30]
[422150164,1778623846000,-40045.0,0.0003393,60]
[422150145,1778623846000,-151.06936244,0.000336,120]
[422150161,1778623846000,-40045.0,0.00033775,60]
[422150170,1778623846000,-500.0,0.0003393,2]
[422150173,1778623846000,-500.0,0.0003393,2]
[422150174,1778623846000,-500.0,0.0003393,2]
[422150176,1778623846000,-500.0,0.0003393,2]
[422150159,1778623846000,-240.0,0.00033652,30]
[422150177,1778623846000,-500.0,0.0003393,2]
[422150169,1778623846000,-500.0,0.0003393,2]
[422150168,1778623846000,-500.0,0.0003393,2]
[422150162,1778623846000,-393.12549837,0.00033781,7]
[422150163,1778623846000,-40045.0,0.0003384,60]
[422150165,1778623846000,-151.0,0.0003393,7]
[422150160,1778623846000,-40045.0,0.00033672,60]
[422150178,1778623846000,-500.0,0.0003393,2]
[422150253,1778623847000,-500.0,0.0003393,2]
[422150249,1778623847000,-500.0,0.0003393,2]
[422150250,1778623847000,-500.0,0.0003393,2]
[422150252,1778623847000,-500.0,0.0003393,2]
[422150236,1778623847000,-500.0,0.0003393,2]
[422150246,1778623847000,-500.0,0.0003393,2]
[422150247,1778623847000,-500.0,0.0003393,2]
[422150248,1778623847000,-500.0,0.0003393,2]
[422150241,1778623847000,-500.0,0.0003393,2]
[422150239,1778623847000,-500.0,0.0003393,2]
[422150244,1778623847000,-500.0,0.0003393,2]
[422150245,1778623847000,-500.0,0.0003393,2]
[422150258,1778623847000,-500.0,0.0003393,2]
[422150254,1778623847000,-500.0,0.0003393,2]
[422150251,1778623847000,-500.0,0.0003393,2]
[422150257,1778623847000,-500.0,0.0003393,2]
[422150256,1778623847000,-500.0,0.0003393,2]
[422150260,1778623847000,-500.0,0.0003393,2]
[422150259,1778623847000,-500.0,0.0003393,2]
[422150261,1778623847000,-500.0,0.0003393,2]
[422150262,1778623847000,-500.0,0.0003393,2]
[422150264,1778623847000,-500.0,0.0003393,2]
[422150265,1778623847000,-296.382654,0.0003393,2]
[422150274,1778623847000,-930.0,0.00034121,2]
[422150237,1778623847000,-500.0,0.0003393,2]
[422150255,1778623847000,-500.0,0.0003393,2]
[422150238,1778623847000,-500.0,0.0003393,2]
[422150220,1778623847000,-500.0,0.0003393,2]
[422150235,1778623847000,-500.0,0.0003393,2]
[422150213,1778623847000,-500.0,0.0003393,2]
[422150215,1778623847000,-500.0,0.0003393,2]
[422150214,1778623847000,-500.0,0.0003393,2]
[422150216,1778623847000,-500.0,0.0003393,2]
[422150211,1778623847000,-500.0,0.0003393,2]
[422150208,1778623847000,-500.0,0.0003393,2]
[422150210,1778623847000,-500.0,0.0003393,2]
[422150212,1778623847000,-500.0,0.0003393,2]
[422150209,1778623847000,-500.0,0.0003393,2]
[422150217,1778623847000,-500.0,0.0003393,2]
[422150218,1778623847000,-500.0,0.0003393,2]
[422150230,1778623847000,-500.0,0.0003393,2]
[422150240,1778623847000,-151.306609,0.0003393,7]
[422150229,1778623847000,-500.0,0.0003393,2]
[422150223,1778623847000,-500.0,0.0003393,2]
[422150263,1778623847000,-500.0,0.0003393,2]
[422150225,1778623847000,-500.0,0.0003393,2]
[422150226,1778623847000,-500.0,0.0003393,2]
[422150219,1778623847000,-500.0,0.0003393,2]
[422150221,1778623847000,-500.0,0.0003393,2]
[422150227,1778623847000,-500.0,0.0003393,2]
[422150243,1778623847000,-500.0,0.0003393,2]
[422150232,1778623847000,-258.495888,0.0003393,7]
[422150242,1778623847000,-500.0,0.0003393,2]
[422150233,1778623847000,-500.0,0.0003393,2]
[422150234,1778623847000,-500.0,0.0003393,2]
[422150228,1778623847000,-500.0,0.0003393,2]
[422150267,1778623847000,-350.0,0.00033973,5]
[422150222,1778623847000,-500.0,0.0003393,2]
[422150268,1778623847000,-40045.0,0.00034008,60]
[422150300,1778623847000,-1353.0,0.00034467,2]
[422150301,1778623847000,-3540.0,0.00034467,2]
[422150303,1778623847000,-1150.17820742,0.00034481,2]
[422150302,1778623847000,-1000.0,0.00034481,2]
[422150306,1778623847000,-1036.23103,0.00034511,7]
[422150307,1778623847000,-1036.23103,0.00034511,7]
[422150305,1778623847000,-40045.0,0.00034511,60]
[422150304,1778623847000,-197.0,0.000345,2]
[422150310,1778623847000,-151.0,0.00034511,7]
[422150308,1778623847000,-1036.23103,0.00034511,7]
[422150309,1778623847000,-1036.23103,0.00034511,7]
[422150311,1778623847000,-151.0,0.00034511,7]
[422150296,1778623847000,-151.0,0.00034395,7]
[422150312,1778623847000,-448.648598,0.00034511,7]
[422150315,1778623847000,-151.0,0.00034511,7]
[422150313,1778623847000,-151.0,0.00034511,7]
[422150316,1778623847000,-151.0,0.00034511,7]
[422150322,1778623847000,-151.0,0.00034511,7]
[422150317,1778623847000,-448.648598,0.00034511,7]
[422150318,1778623847000,-151.0,0.00034511,7]
[422150323,1778623847000,-151.0,0.00034511,7]
[422150320,1778623847000,-151.0,0.00034511,7]
[422150321,1778623847000,-448.648598,0.00034511,7]
[422150319,1778623847000,-151.0,0.00034511,7]
[422150325,1778623847000,-225.902096,0.00034511,7]
[422150324,1778623847000,-225.902096,0.00034511,7]
[422150314,1778623847000,-448.648598,0.00034511,7]
[422150297,1778623847000,-151.0,0.00034395,7]
[422150266,1778623847000,-500.0,0.00033945,2]
[422150290,1778623847000,-557.314988,0.00034395,7]
[422150272,1778623847000,-40045.0,0.00034085,60]
[422150270,1778623847000,-151.0,0.00034008,7]
[422150269,1778623847000,-152.639411,0.00034008,7]
[422150271,1778623847000,-573.27,0.00034049,30]
[422150273,1778623847000,-157.03,0.000341,30]
[422150276,1778623847000,-40045.0,0.0003424,60]
[422150275,1778623847000,-40045.0,0.00034175,60]
[422150295,1778623847000,-557.314988,0.00034395,7]
[422150286,1778623847000,-1154.057842,0.00034395,7]
[422150277,1778623847000,-197.61,0.00034285,30]
[422150284,1778623847000,-212.986392,0.00034395,7]
[422150285,1778623847000,-212.986392,0.00034395,7]
[422150279,1778623847000,-579.61,0.000343,7]
[422150278,1778623847000,-196.59,0.00034285,30]
[422150280,1778623847000,-40045.0,0.00034343,60]
[422150281,1778623847000,-40045.0,0.00034395,60]
[422150294,1778623847000,-151.0,0.00034395,7]
[422150291,1778623847000,-557.314988,0.00034395,7]
[422150292,1778623847000,-151.0,0.00034395,7]
[422150289,1778623847000,-1154.057842,0.00034395,7]
[422150293,1778623847000,-557.314988,0.00034395,7]
[422150288,1778623847000,-1154.057842,0.00034395,7]
[422150287,1778623847000,-1154.057842,0.00034395,7]
[422150298,1778623847000,-151.0,0.00034395,7]
[422150283,1778623847000,-212.986392,0.00034395,7]
[422150282,1778623847000,-212.986392,0.00034395,7]
[422150299,1778623847000,-150.0,0.00034467,2]
[422150359,1778623848000,-1659.46729658,0.00035305,87]
[422150368,1778623848000,-510.0,0.00035644,30]
[422150365,1778623848000,-178.58,0.00035616,2]
[422150361,1778623848000,-373.55,0.00035616,30]
[422150364,1778623848000,-285.31390229,0.00035616,2]
[422150349,1778623848000,-350.0,0.00034931,5]
[422150367,1778623848000,-174.0,0.00035644,30]
[422150363,1778623848000,-1000.0,0.00035616,30]
[422150358,1778623848000,-1500.0,0.000352,7]
[422150350,1778623848000,-526.0,0.00035,5]
[422150362,1778623848000,-1000.0,0.00035616,30]
[422150366,1778623848000,-178.0,0.00035644,30]
[422150380,1778623848000,-1000.0,0.00036048,2]
[422150369,1778623848000,-1251.0,0.00035644,30]
[422150370,1778623848000,-156.0,0.00035644,30]
[422150371,1778623848000,-154.0,0.00035644,30]
[422150373,1778623848000,-158.0,0.00035652,30]
[422150372,1778623848000,-330.0,0.00035644,30]
[422150384,1778623848000,-2390.49,0.000366,14]
[422150383,1778623848000,-1558.112327,0.000365,26]
[422150374,1778623848000,-174.0,0.00035652,30]
[422150376,1778623848000,-508.0,0.00035836,2]
[422150375,1778623848000,-240.0,0.00035652,30]
[422150379,1778623848000,-1000.0,0.00036048,2]
[422150377,1778623848000,-350.0,0.0003589,5]
[422150351,1778623848000,-202.30578908,0.00035,120]
[422150360,1778623848000,-905.86,0.00035481,30]
[422150352,1778623848000,-1558.65491597,0.00035,2]
[422150344,1778623848000,-40045.0,0.00034679,60]
[422150354,1778623848000,-159.0818048,0.00035107,120]
[422150381,1778623848000,-152.0,0.00036126,6]
[422150328,1778623848000,-229.07,0.00034521,120]
[422150330,1778623848000,-151.0,0.0003455,7]
[422150329,1778623848000,-40045.0,0.0003455,60]
[422150331,1778623848000,-151.0,0.0003455,7]
[422150332,1778623848000,-151.0,0.0003455,7]
[422150326,1778623848000,-225.902096,0.00034511,7]
[422150327,1778623848000,-225.902096,0.00034511,7]
[422150333,1778623848000,-178.0,0.00034644,30]
[422150334,1778623848000,-158.0,0.00034644,30]
[422150338,1778623848000,-156.0,0.00034644,30]
[422150339,1778623848000,-154.0,0.00034644,30]
[422150348,1778623848000,-40050.0,0.0003486,60]
[422150336,1778623848000,-510.0,0.00034644,30]
[422150335,1778623848000,-174.0,0.00034644,30]
[422150341,1778623848000,-158.0,0.00034652,30]
[422150342,1778623848000,-174.0,0.00034652,30]
[422150345,1778623848000,-40045.0,0.00034705,60]
[422150340,1778623848000,-330.0,0.00034644,30]
[422150343,1778623848000,-240.0,0.00034652,30]
[422150347,1778623848000,-40045.0,0.00034847,60]
[422150353,1778623848000,-150.0,0.00035,2]
[422150356,1778623848000,-197.61,0.0003516,2]
[422150346,1778623848000,-2390.49,0.000348,14]
[422150355,1778623848000,-410.3534786,0.00035107,120]
[422150357,1778623848000,-196.59,0.0003516,2]
[422150337,1778623848000,-1251.0,0.00034644,30]
[422150382,1778623848000,-181.9429298,0.00036287,7]
[422150378,1778623848000,-1000.0,0.00036048,2]
[422150387,1778623848000,-510.0,0.00036644,30]
[422150415,1778623848000,-463.6616139,0.00037126,2]
[422150418,1778623848000,-300.0,0.00037126,2]
[422150417,1778623848000,-451.72868137,0.00037126,2]
[422150419,1778623848000,-300.0,0.00037126,2]
[422150420,1778623848000,-300.0,0.00037126,2]
[422150423,1778623848000,-483.88780455,0.00037126,2]
[422150422,1778623848000,-571.88310284,0.00037126,2]
[422150425,1778623848000,-300.0,0.00037126,2]
[422150424,1778623848000,-309.70196001,0.00037126,2]
[422150429,1778623848000,-300.0,0.00037126,2]
[422150427,1778623848000,-300.0,0.00037126,2]
[422150430,1778623848000,-300.0,0.00037126,2]
[422150428,1778623848000,-300.0,0.00037126,2]
[422150431,1778623848000,-300.0,0.00037126,2]
[422150434,1778623848000,-300.0,0.00037126,2]
[422150432,1778623848000,-300.0,0.00037126,2]
[422150437,1778623848000,-300.0,0.00037126,2]
[422150438,1778623848000,-604.21547136,0.00037126,2]
[422150435,1778623848000,-492.49408754,0.00037126,2]
[422150436,1778623848000,-300.0,0.00037126,2]
[422150439,1778623848000,-300.0,0.00037126,2]
[422150433,1778623848000,-300.0,0.00037126,2]
[422150441,1778623848000,-300.0,0.00037126,2]
[422150440,1778623848000,-300.0,0.00037126,2]
[422150442,1778623848000,-527.54022817,0.00037126,2]
[422150443,1778623848000,-300.0,0.00037126,2]
[422150385,1778623848000,-178.0,0.00036644,30]
[422150414,1778623848000,-300.0,0.00037126,2]
[422150412,1778623848000,-300.0,0.00037126,2]
[422150426,1778623848000,-300.0,0.00037126,2]
[422150421,1778623848000,-300.0,0.00037126,2]
[422150413,1778623848000,-300.0,0.00037126,2]
[422150388,1778623848000,-1251.0,0.00036644,30]
[422150386,1778623848000,-174.0,0.00036644,30]
[422150391,1778623848000,-330.0,0.00036644,30]
[422150392,1778623848000,-158.0,0.00036652,30]
[422150389,1778623848000,-156.0,0.00036644,30]
[422150396,1778623848000,-634.72261672,0.00036728,2]
[422150390,1778623848000,-154.0,0.00036644,30]
[422150393,1778623848000,-174.0,0.00036652,30]
[422150395,1778623848000,-150.14,0.0003669,30]
[422150406,1778623848000,-864.10865205,0.00037126,2]
[422150408,1778623848000,-1754.96949453,0.00037126,2]
[422150401,1778623848000,-1500.0,0.00037,26]
[422150394,1778623848000,-240.0,0.00036652,30]
[422150403,1778623848000,-393.192,0.00037121,2]
[422150416,1778623848000,-576.93890108,0.00037126,2]
[422150400,1778623848000,-497.961043,0.00037,120]
[422150411,1778623848000,-310.77293504,0.00037126,2]
[422150405,1778623848000,-309.46605895,0.00037126,2]
[422150399,1778623848000,-2060.969,0.00036853,46]
[422150404,1778623848000,-1146.71946024,0.00037126,2]
[422150410,1778623848000,-300.0,0.00037126,2]
[422150402,1778623848000,-213.12493152,0.00037111,2]
[422150397,1778623848000,-579.61,0.000368,7]
[422150407,1778623848000,-300.0,0.00037126,2]
[422150398,1778623848000,-350.0,0.00036849,5]
[422150409,1778623848000,-300.0,0.00037126,2]
[422150481,1778623849000,-483.88780455,0.00037126,2]
[422150488,1778623849000,-300.0,0.00037126,2]
[422150487,1778623849000,-300.0,0.00037126,2]
[422150482,1778623849000,-309.70196001,0.00037126,2]
[422150484,1778623849000,-305.55843556,0.00037126,2]
[422150490,1778623849000,-300.0,0.00037126,2]
[422150480,1778623849000,-300.0,0.00037126,2]
[422150477,1778623849000,-300.0,0.00037126,2]
[422150475,1778623849000,-576.93890108,0.00037126,2]
[422150474,1778623849000,-300.0,0.00037126,2]
[422150485,1778623849000,-300.0,0.00037126,2]
[422150483,1778623849000,-300.0,0.00037126,2]
[422150486,1778623849000,-300.0,0.00037126,2]
[422150492,1778623849000,-300.0,0.00037126,2]
[422150489,1778623849000,-300.0,0.00037126,2]
[422150491,1778623849000,-300.00807637,0.00037126,2]
[422150496,1778623849000,-300.0,0.00037126,2]
[422150497,1778623849000,-300.00000001,0.00037126,2]
[422150495,1778623849000,-492.49408754,0.00037126,2]
[422150494,1778623849000,-300.0,0.00037126,2]
[422150493,1778623849000,-300.000001,0.00037126,2]
[422150499,1778623849000,-300.0,0.00037126,2]
[422150498,1778623849000,-604.21547136,0.00037126,2]
[422150500,1778623849000,-527.54022817,0.00037126,2]
[422150501,1778623849000,-1066.50381929,0.00037126,2]
[422150502,1778623849000,-893.04482543,0.00037126,2]
[422150476,1778623849000,-451.72868137,0.00037126,2]
[422150479,1778623849000,-300.0,0.00037126,2]
[422150471,1778623849000,-300.0,0.00037126,2]
[422150454,1778623849000,-332.98327946,0.00037126,2]
[422150473,1778623849000,-463.66161389,0.00037126,2]
[422150503,1778623849000,-725.78568352,0.00037126,2]
[422150445,1778623849000,-893.04482543,0.00037126,2]
[422150449,1778623849000,-301.67321972,0.00037126,2]
[422150444,1778623849000,-1066.50381929,0.00037126,2]
[422150450,1778623849000,-300.45062341,0.00037126,2]
[422150451,1778623849000,-379.25258747,0.00037126,2]
[422150446,1778623849000,-590.52830037,0.00037126,2]
[422150453,1778623849000,-300.0,0.00037126,2]
[422150447,1778623849000,-725.78568352,0.00037126,2]
[422150452,1778623849000,-300.0,0.00037126,2]
[422150448,1778623849000,-300.0,0.00037126,2]
[422150456,1778623849000,-853.86030012,0.00037126,2]
[422150466,1778623849000,-300.0,0.00037126,2]
[422150472,1778623849000,-300.0,0.00037126,2]
[422150458,1778623849000,-1911.66155628,0.00037126,2]
[422150459,1778623849000,-300.00000001,0.00037126,2]
[422150465,1778623849000,-864.10865205,0.00037126,2]
[422150462,1778623849000,-300.0,0.00037126,2]
[422150460,1778623849000,-343.84381003,0.00037126,2]
[422150463,1778623849000,-1146.71946024,0.00037126,2]
[422150455,1778623849000,-300.0,0.00037126,2]
[422150461,1778623849000,-526.68525168,0.00037126,2]
[422150457,1778623849000,-300.0,0.00037126,2]
[422150467,1778623849000,-1754.96949453,0.00037126,2]
[422150469,1778623849000,-300.0,0.00037126,2]
[422150468,1778623849000,-300.0,0.00037126,2]
[422150470,1778623849000,-310.77293504,0.00037126,2]
[422150478,1778623849000,-300.0,0.00037126,2]
[422150464,1778623849000,-309.46605895,0.00037126,2]
[422150505,1778623849000,-301.67321972,0.00037126,2]
[422150564,1778623849000,-300.0,0.00037126,2]
[422150517,1778623849000,-300.0,0.00037126,2]
[422150540,1778623849000,-300.0,0.00037126,2]
[422150534,1778623849000,-483.88780455,0.00037126,2]
[422150539,1778623849000,-300.0,0.00037126,2]
[422150536,1778623849000,-300.0,0.00037126,2]
[422150543,1778623849000,-300.0,0.00037126,2]
[422150544,1778623849000,-300.0,0.00037126,2]
[422150545,1778623849000,-300.0,0.00037126,2]
[422150546,1778623849000,-300.0,0.00037126,2]
[422150547,1778623849000,-300.0,0.00037126,2]
[422150549,1778623849000,-492.49408754,0.00037126,2]
[422150550,1778623849000,-300.0,0.00037126,2]
[422150553,1778623849000,-300.0,0.00037126,2]
[422150552,1778623849000,-604.21547135,0.00037126,2]
[422150551,1778623849000,-364.41022781,0.00037126,2]
[422150554,1778623849000,-300.0,0.00037126,2]
[422150560,1778623849000,-301.67321972,0.00037126,2]
[422150563,1778623849000,-300.0,0.00037126,2]
[422150565,1778623849000,-853.86030011,0.00037126,2]
[422150555,1778623849000,-527.54022817,0.00037126,2]
[422150557,1778623849000,-893.04482544,0.00037126,2]
[422150561,1778623849000,-300.0,0.00037126,2]
[422150566,1778623849000,-599.95681692,0.00037126,2]
[422150559,1778623849000,-300.0,0.00037126,2]
[422150562,1778623849000,-300.45062341,0.00037126,2]
[422150515,1778623849000,-526.68525168,0.00037126,2]
[422150556,1778623849000,-1066.50381929,0.00037126,2]
[422150558,1778623849000,-725.78568352,0.00037126,2]
[422150537,1778623849000,-300.0,0.00037126,2]
[422150541,1778623849000,-300.0,0.00037126,2]
[422150548,1778623849000,-300.0,0.00037126,2]
[422150535,1778623849000,-309.70196001,0.00037126,2]
[422150504,1778623849000,-300.0,0.00037126,2]
[422150538,1778623849000,-300.0,0.00037126,2]
[422150506,1778623849000,-300.0,0.00037126,2]
[422150507,1778623849000,-300.45062341,0.00037126,2]
[422150509,1778623849000,-300.0,0.00037126,2]
[422150508,1778623849000,-300.0,0.00037126,2]
[422150510,1778623849000,-300.0,0.00037126,2]
[422150514,1778623849000,-343.84381003,0.00037126,2]
[422150512,1778623849000,-300.0,0.00037126,2]
[422150511,1778623849000,-853.86030011,0.00037126,2]
[422150513,1778623849000,-1911.66155628,0.00037126,2]
[422150518,1778623849000,-1146.71946024,0.00037126,2]
[422150520,1778623849000,-864.10865205,0.00037126,2]
[422150522,1778623849000,-1754.96949453,0.00037126,2]
[422150516,1778623849000,-300.0,0.00037126,2]
[422150524,1778623849000,-300.0,0.00037126,2]
[422150532,1778623849000,-300.0,0.00037126,2]
[422150519,1778623849000,-309.46605895,0.00037126,2]
[422150533,1778623849000,-300.0,0.00037126,2]
[422150530,1778623849000,-576.93890108,0.00037126,2]
[422150531,1778623849000,-451.72868138,0.00037126,2]
[422150529,1778623849000,-300.0,0.00037126,2]
[422150542,1778623849000,-300.0,0.00037126,2]
[422150527,1778623849000,-300.0,0.00037126,2]
[422150526,1778623849000,-300.0,0.00037126,2]
[422150523,1778623849000,-300.0,0.00037126,2]
[422150521,1778623849000,-300.0,0.00037126,2]
[422150525,1778623849000,-310.57459591,0.00037126,2]
[422150528,1778623849000,-463.66161391,0.00037126,2]
[422150603,1778623850000,-300.0,0.00037126,2]
[422150607,1778623850000,-1094.29459015,0.00037126,2]